bitfinex-derivatives/quotes_ETHF0:USTF0_20240829
["timestamp","ask_amount","ask_price","bid_price","bid_amount"]
[1724933418060,14.12418615,2557.3,2557.2,0.61105104]
[1724933418569,20.12418615,2557.3,2557.2,0.61105104]
[1724933419067,16.91638615,2557.3,2557.2,0.61105104]
[1724933419764,17.89372615,2557.3,2557.2,0.61105104]
[1724933420158,0.391,2556.9,2556.7,0.6931]
[1724933420359,2.30464,2556.8,2556.5,8.65529118]
[1724933420670,0.39104,2556.6,2556.5,7.63274]
[1724933420960,0.39104,2556.6,2556.5,8.04844717]
[1724933421165,4.13495813,2556.6,2556.5,8.04844717]
[1724933421563,1.71812,2556.8,2556.7,0.39103]
[1724933421865,4.24351415,2556.8,2556.7,3.79568717]
[1724933422068,4.24351415,2556.8,2556.7,5.16428717]
[1724933422971,4.24351415,2556.8,2556.7,4.18671717]
[1724933423171,4.24351415,2556.8,2556.7,15.07548717]
[1724933423372,0.00586613,2557.3,2557.1,0.39095]
[1724933423564,0.00586613,2557.3,2557.2,5.77528717]
[1724933423763,0.39679613,2557.3,2557.2,5.77528717]
[1724933423965,4.62027738,2557.3,2557.2,5.77528717]
[1724933424465,4.22934738,2557.3,2557.2,5.77528717]
[1724933424965,4.22934738,2557.3,2557.2,6.16623717]
[1724933425171,4.22934738,2557.3,2557.2,5.75055]
[1724933425475,4.22934738,2557.3,2557.2,6.16594411]
[1724933426062,4.22934738,2557.3,2557.2,9.37374411]
[1724933426566,4.22934738,2557.3,2557.2,6.16594411]
[1724933427272,4.22934738,2557.3,2557.2,6.16584998]
[1724933428677,0.00586613,2557.3,2557.2,13.28404998]
[1724933429181,0.00586613,2557.3,2557.2,9.37364998]
[1724933429364,0.00586613,2557.3,2557.2,13.28404998]
[1724933430575,0.00586613,2557.3,2557.2,12.86875]
[1724933430780,0.00586613,2557.3,2557.2,14.26134991]
[1724933431374,0.00586613,2557.3,2557.2,14.3077839]
[1724933431873,0.00586613,2557.3,2557.2,15.67632499]
[1724933432274,0.00586613,2557.3,2557.2,16.65369083]
[1724933432978,0.00586613,2557.3,2557.2,15.2851639]
[1724933433676,0.00586613,2557.3,2557.2,13.28396991]
[1724933433878,0.00586613,2557.3,2557.2,5.1874]
[1724933434079,0.00586613,2557.3,2557.2,12.7286314]
[1724933434281,0.00586613,2557.3,2557.2,13.1195814]
[1724933434878,0.00586613,2557.3,2557.2,12.7286314]
[1724933435075,4.45081448,2557.3,2557.2,12.0829314]
[1724933435270,5.13551448,2557.3,2557.2,12.0829314]
[1724933435474,5.52644448,2557.3,2557.2,10.7490314]
[1724933435674,5.52644448,2557.3,2557.2,3.6230314]
[1724933435675,9.43684448,2557.3,2557.2,3.6230314]
[1724933436282,9.43684448,2557.3,2557.2,3.62302293]
[1724933437578,10.41418448,2557.3,2557.2,0.41522293]
[1724933437775,10.02325448,2557.3,2556.9,7.50699]
[1724933437966,0.39097,2557.1,2557.0,0.41518441]
[1724933438274,4.89131813,2557.1,2557.0,0.41518441]
[1724933440071,9.77913813,2557.1,2557.0,0.41518441]
[1724933440272,1.3685,2556.9,2556.8,3.2078]
[1724933440477,1.3685,2556.9,2556.8,3.62298725]
[1724933440787,1.3685,2556.9,2556.8,3.6230107]
[1724933440788,9.5471782,2556.9,2556.8,3.6230107]
[1724933442284,8.5696782,2556.9,2556.8,3.6230107]
[1724933442475,4.2674782,2556.9,2556.8,4.6749207]
[1724933443779,4.2674782,2556.9,2556.8,4.25971]
[1724933443978,4.2674782,2556.9,2556.8,4.67466843]
[1724933444485,4.6584782,2556.9,2556.8,4.28365843]
[1724933444677,5.3054782,2556.9,2556.8,3.62275843]
[1724933444871,1.038,2556.9,2556.8,3.62275843]
[1724933445077,6.07520875,2556.9,2556.8,3.62275843]
[1724933445283,10.96390875,2556.9,2556.8,3.62275843]
[1724933446185,9.33640875,2556.9,2556.8,3.62275843]
[1724933446391,5.42520875,2556.9,2556.8,3.62275843]
[1724933446685,4.77820875,2556.9,2556.8,3.62275843]
[1724933447277,4.77820875,2556.9,2556.8,3.6223983]
[1724933449186,9.66690875,2556.9,2556.8,3.6223983]
[1724933450491,9.66690875,2556.9,2556.8,3.2078]
[1724933450679,9.66690875,2556.9,2556.8,3.62236965]
[1724933450878,10.64440875,2556.9,2556.8,0.41456965]
[1724933451079,0.39105,2556.6,2556.5,0.39105]
[1724933451288,1.338,2556.8,2556.7,0.39103]
[1724933451594,6.08646864,2556.8,2556.7,3.77103]
[1724933451793,6.08646864,2556.8,2556.7,3.38]
[1724933452089,6.08646864,2556.8,2556.7,3.77103]
[1724933452280,5.69545864,2556.8,2556.7,3.77103]
[1724933452483,5.69545864,2556.8,2556.7,4.18575329]
[1724933452681,6.08646864,2556.8,2556.7,4.18575329]
[1724933452892,5.69545864,2556.8,2556.7,4.18575329]
[1724933453090,5.69545864,2556.8,2556.7,3.77103]
[1724933453893,6.08646864,2556.8,2556.7,3.38]
[1724933454279,6.08646864,2556.8,2556.7,3.77103]
[1724933454891,6.08646864,2556.8,2556.7,3.38]
[1724933455687,0.65,2557.2,2557.0,0.39097]
[1724933455907,0.6415,2557.2,2557.1,0.39097]
[1724933456087,0.6415,2557.2,2557.1,1.46635226]
[1724933456288,0.00586613,2557.3,2557.2,0.39095]
[1724933456493,0.00586613,2557.3,2557.2,4.84083226]
[1724933456684,4.0750383,2557.3,2557.2,4.84083226]
[1724933456889,4.4659683,2557.3,2557.2,4.42605]
[1724933457084,4.4659683,2557.3,2557.2,3.77095]
[1724933457288,4.4659683,2557.3,2557.2,0.39095]
[1724933458890,4.4659683,2557.3,2557.1,0.39095]
[1724933458891,0.39095,2557.2,2557.1,0.39095]
[1724933459286,4.48664029,2557.2,2557.1,0.39095]
[1724933459587,4.09569029,2557.2,2557.1,0.39095]
[1724933459791,4.09569029,2557.2,2557.1,0.80551067]
[1724933460386,4.09569029,2557.2,2557.1,0.39095]
[1724933460586,4.09569029,2557.2,2557.1,0.80550381]
[1724933460982,4.09569029,2557.2,2557.1,0.39095]
[1724933460983,4.48664029,2557.2,2557.1,0.39095]
[1724933461394,4.09569029,2557.2,2557.1,0.39095]
[1724933461593,4.09569029,2557.2,2557.1,0.80548494]
[1724933462796,4.09569029,2557.2,2557.1,0.80541104]
[1724933462993,4.09569029,2557.2,2557.1,4.18541104]
[1724933464398,0.00586613,2557.3,2557.2,0.39095]
[1724933464597,0.00586613,2557.3,2557.2,7.07009104]
[1724933465594,0.00586613,2557.3,2557.2,6.09271104]
[1724933465997,0.00586613,2557.3,2557.2,7.07009104]
[1724933468797,0.00586613,2557.3,2557.2,47.87009104]
[1724933472116,0.00586613,2557.3,2557.2,51.07789104]
[1724933472310,0.00586613,2557.3,2557.2,52.05527104]
[1724933472514,0.00586613,2557.3,2557.2,51.64081]
[1724933472705,0.00586613,2557.3,2557.2,52.05481582]
[1724933473102,0.00586613,2557.3,2557.2,58.05481582]
[1724933475812,0.00586613,2557.3,2557.2,57.64081]
[1724933476012,0.00586613,2557.3,2557.2,58.05477253]
[1724933480113,0.00586613,2557.3,2557.2,17.25477253]
[1724933481820,0.6823,2557.9,2557.2,15.88644253]
[1724933482019,3.2078,2558.2,2558.1,0.39081]
[1724933482020,1.3116,2558.2,2558.1,0.39081]
[1724933482225,1.3116,2558.2,2558.1,3.77081]
[1724933482727,1.3116,2558.2,2557.6,8.42261399]
[1724933482728,5.2204,2558.2,2557.6,8.42261399]
[1724933482910,2.34525,2557.7,2557.6,0.00586613]
[1724933483112,6.5878,2557.8,2557.3,2.39250158]
[1724933483113,1.36823,2557.4,2557.3,1.36868759]
[1724933483318,2.34554,2557.4,2557.3,1.36868759]
[1724933483512,2.34554,2557.4,2556.9,3.2078]
[1724933483513,0.39098,2557.0,2556.9,3.2078]
[1724933483914,4.62523111,2557.0,2556.9,3.2078]
[1724933484928,4.23425111,2557.0,2556.9,3.2078]
[1724933485118,4.62523111,2557.0,2556.9,3.2078]
[1724933485836,4.62523111,2557.0,2556.8,3.38]
[1724933485837,0.391,2556.9,2556.8,3.38]
[1724933486529,1.0469,2556.9,2556.8,3.38]
[1724933489323,1.0469,2556.9,2556.8,3.77101]
[1724933489528,1.0469,2556.9,2556.8,3.38]
[1724933489729,0.391,2556.9,2556.8,3.38]
[1724933489935,0.39099,2557.0,2556.8,3.77101]
[1724933490227,4.48102188,2557.0,2556.8,3.77101]
[1724933491427,4.48102188,2557.0,2556.9,0.391]
[1724933491631,4.48102188,2557.0,2556.8,3.771]
[1724933491931,4.48102188,2557.0,2556.9,0.391]
[1724933492139,4.09003188,2557.0,2556.9,0.391]
[1724933492727,1.03937,2557.1,2556.8,4.7342]
[1724933492933,1.03937,2557.1,2556.9,0.39098]
[1724933493132,0.39098,2557.0,2556.9,0.39098]
[1724933494132,0.6484,2557.1,2556.8,4.7342]
[1724933494433,0.39099,2557.0,2556.9,0.39099]
[1724933497343,0.391,2556.9,2556.8,3.77101]
[1724933499025,0.391,2556.9,2556.8,4.18590637]
[1724933500229,0.391,2556.9,2556.8,3.79489637]
[1724933500627,4.3022,2556.9,2556.8,4.18590637]
[1724933500938,8.41306405,2556.9,2556.8,3.38]
[1724933501131,8.41306405,2556.9,2556.8,3.7948687]
[1724933501930,8.41306405,2556.9,2556.8,4.1858787]
[1724933502233,8.41306405,2556.9,2556.8,3.7948687]
[1724933502638,9.39056405,2556.9,2556.8,3.7948687]
[1724933502840,8.41306405,2556.9,2556.8,3.7948687]
[1724933503036,9.39056405,2556.9,2556.8,3.7948687]
[1724933503238,9.39056405,2556.9,2556.8,3.38]
[1724933505330,9.39056405,2556.9,2556.8,3.79503692]
[1724933505535,9.39056405,2556.9,2556.8,3.38]
[1724933505935,9.39056405,2556.9,2556.7,3.60468613]
[1724933506144,0.39101,2556.8,2556.7,3.60468613]
[1724933506334,0.39101,2556.8,2556.7,4.0197295]
[1724933506535,4.47249481,2556.8,2556.7,4.0197295]
[1724933507244,4.47249481,2556.8,2556.7,5.4297295]
[1724933510536,4.47249481,2556.8,2556.7,2.2219295]
[1724933511342,4.47249481,2556.8,2556.7,2.22179949]
[1724933512243,4.47249481,2556.8,2556.7,2.22172314]
[1724933513747,4.47249481,2556.8,2556.7,1.80688613]
[1724933514543,4.47249481,2556.8,2556.7,2.22178079]
[1724933514846,4.47249481,2556.8,2556.7,1.80688613]
[1724933515043,4.47249481,2556.8,2556.7,2.22182184]
[1724933515346,1.62584,2557.1,2556.7,1.83080184]
[1724933515645,2.01681,2557.1,2557.0,1.41]
[1724933516048,6.26629975,2557.1,2557.0,2.098]
[1724933518145,6.26629975,2557.1,2557.0,1.41]
[1724933519648,1.36847,2557.0,2556.9,1.41]
[1724933519849,1.36855,2556.8,2556.7,0.00586613]
[1724933520052,2.34609,2556.8,2556.7,0.00586613]
[1724933520349,6.75151504,2556.8,2556.7,0.00586613]
[1724933520549,10.35877504,2556.8,2556.7,0.00586613]
[1724933520742,6.44757504,2556.8,2556.7,0.00586613]
[1724933521851,0.39101,2556.8,2556.7,0.42164655]
[1724933522045,0.39101,2556.8,2556.7,1.10834655]
[1724933522247,1.36855,2556.8,2556.7,1.10834655]
[1724933522443,1.36855,2556.8,2556.7,0.69256613]
[1724933522647,1.36855,2556.8,2556.7,0.00586613]
[1724933522853,10.4346665,2556.8,2556.7,0.00586613]
[1724933525853,13.6424665,2556.8,2556.7,0.00586613]
[1724933526054,1.36871,2556.5,2556.4,1.3035]
[1724933526254,1.36871,2556.5,2556.4,1.71938455]
[1724933526453,5.86108294,2556.5,2556.4,1.71938455]
[1724933526756,5.86108294,2556.5,2556.4,2.11045455]
[1724933526957,4.88343294,2556.5,2556.4,2.11045455]
[1724933528044,4.88343294,2556.5,2556.4,1.71938455]
[1724933528546,4.88343294,2556.5,2556.4,2.11045455]
[1724933528752,4.88343294,2556.5,2556.4,1.71938455]
[1724933529152,4.88343294,2556.5,2556.4,2.11045455]
[1724933529347,4.88343294,2556.5,2556.4,3.12938455]
[1724933529753,4.88343294,2556.5,2556.4,3.52045455]
[1724933529949,4.49237294,2556.5,2556.4,3.52045455]
[1724933530252,0.97743,2557.1,2556.4,7.0411887]
[1724933530556,0.39099,2557.0,2556.9,1.41]
[1724933530759,0.39099,2557.0,2556.9,1.8256887]
[1724933530967,4.460372,2557.0,2556.9,4.2095887]
[1724933531153,4.460372,2557.0,2556.9,3.8185887]
[1724933531458,4.460372,2557.0,2556.9,2.4085887]
[1724933531859,4.460372,2557.0,2556.9,2.7995887]
[1724933532157,4.460372,2557.0,2556.9,2.4085887]
[1724933532559,4.460372,2557.0,2556.9,2.7995887]
[1724933532762,4.460372,2557.0,2556.9,2.4085887]
[1724933533253,4.460372,2557.0,2556.9,2.7995887]
[1724933533456,4.460372,2557.0,2556.9,2.79943033]
[1724933533960,4.460372,2557.0,2556.9,2.40843033]
[1724933534457,4.460372,2557.0,2556.9,1.74913033]
[1724933534758,10.326492,2557.0,2556.9,0.41553033]
[1724933534964,0.39105,2556.6,2556.5,0.39105]
[1724933535159,0.39105,2556.6,2556.5,0.8066357]
[1724933535360,0.39105,2556.6,2556.5,2.2166357]
[1724933536254,0.39104,2556.7,2556.6,0.39104]
[1724933536463,0.39104,2556.7,2556.6,0.8066257]
[1724933536664,4.49231229,2556.7,2556.6,0.8066257]
[1724933536865,4.49231229,2556.7,2556.6,0.80655148]
[1724933537164,6.03298229,2556.7,2556.6,0.41551148]
[1724933538362,4.10127229,2556.7,2556.6,2.21655148]
[1724933538764,0.39099,2557.0,2556.9,0.39099]
[1724933538965,0.39099,2557.0,2556.9,2.21650148]
[1724933539466,0.39099,2557.0,2556.9,2.21651148]
[1724933540060,0.39099,2557.0,2556.9,2.21622868]
[1724933542069,3.59878,2557.1,2557.0,0.39098]
[1724933542276,3.59878,2557.1,2557.0,0.80620868]
[1724933542470,8.03875315,2557.1,2557.0,0.80620868]
[1724933542664,4.43997315,2557.1,2557.0,0.80620868]
[1724933543163,4.83094315,2557.1,2557.0,0.80620868]
[1724933543359,4.83094315,2557.1,2557.0,0.39098]
[1724933543569,4.83094315,2557.1,2557.0,0.41500201]
[1724933543762,4.43997315,2557.1,2557.0,0.80598201]
[1724933545279,0.00586613,2557.2,2557.1,0.39097]
[1724933545479,0.00586613,2557.2,2557.1,2.79577201]
[1724933545662,0.00586613,2557.2,2557.1,6.70617201]
[1724933546167,0.00586613,2557.2,2557.1,10.89139201]
[1724933546375,0.00586613,2557.2,2557.1,10.937786]
[1724933547173,0.00586613,2557.2,2557.1,6.70617201]
[1724933547376,0.00586613,2557.2,2557.1,7.729986]
[1724933547573,0.00586613,2557.2,2557.1,6.70617201]
[1724933549971,0.00586613,2557.2,2557.1,6.29117]
[1724933550177,0.00586613,2557.2,2557.1,6.70595095]
[1724933550776,0.00586613,2557.2,2557.1,9.91375095]
[1724933550979,0.00586613,2557.2,2557.1,9.49897]
[1724933551278,0.00586613,2557.2,2557.1,9.91372127]
[1724933553274,0.00586613,2557.2,2557.1,6.00332127]
[1724933553977,0.00586613,2557.2,2557.1,6.98074127]
[1724933554267,0.39092,2557.5,2557.1,9.91372127]
[1724933554475,0.39092,2557.5,2557.4,0.39092]
[1724933554882,4.7322659,2557.5,2557.4,0.39092]
[1724933558483,8.2517459,2557.5,2557.2,1.41]
[1724933558674,0.39093,2557.3,2557.2,1.80094]
[1724933558878,1.36827,2557.3,2557.2,1.82504839]
[1724933559076,6.09317608,2557.3,2557.2,1.41]
[1724933559980,6.09317608,2557.3,2557.2,1.80095]
[1724933561284,5.11583608,2557.3,2557.2,1.80095]
[1724933561483,4.50903608,2557.3,2557.2,1.80095]
[1724933563289,4.11810608,2557.3,2556.9,1.18]
[1724933563487,0.39098,2557.0,2556.9,1.18]
[1724933563881,0.39097,2557.1,2557.0,0.39097]
[1724933564081,1.57536,2557.2,2557.1,0.39097]
[1724933564483,4.7941652,2557.2,2557.1,0.39097]
[1724933565092,5.1851152,2557.2,2557.1,0.39097]
[1724933565885,0.39097,2557.1,2557.0,1.80097]
[1724933566187,0.39097,2557.1,2557.0,1.41]
[1724933566384,0.96407,2557.1,2557.0,1.41]
[1724933566780,0.39098,2557.0,2556.9,2.98099]
[1724933566980,0.39098,2557.0,2556.9,3.39606533]
[1724933567189,4.51735175,2557.0,2556.9,3.39606533]
[1724933569999,4.51735175,2557.0,2556.9,3.39613]
[1724933573300,4.51735175,2557.0,2556.9,3.39606888]
[1724933575394,4.12637175,2557.0,2556.9,3.39606888]
[1724933575600,4.51735175,2557.0,2556.9,3.39606888]
[1724933576188,4.12637175,2557.0,2556.9,3.39606888]
[1724933576598,4.51735175,2557.0,2556.9,3.39606888]
[1724933576800,4.12637175,2557.0,2556.9,3.39606888]
[1724933577100,4.51735175,2557.0,2556.9,3.39606888]
[1724933578507,4.51735175,2557.0,2556.9,2.21606888]
[1724933580699,4.12637175,2557.0,2556.9,2.21606888]
[1724933580903,4.51735175,2557.0,2556.9,2.21606888]
[1724933581100,4.12637175,2557.0,2556.9,3.19356888]
[1724933581306,4.12637175,2557.0,2556.9,2.21606888]
[1724933581603,0.39098,2557.0,2556.9,2.21606888]
[1724933582009,4.8310576,2557.0,2556.9,2.21606888]
[1724933585097,4.4400776,2557.0,2556.9,2.21606888]
[1724933585503,4.4400776,2557.0,2556.9,3.19356888]
[1724933585710,0.39095,2557.2,2557.1,0.39097]
[1724933585912,0.39095,2557.2,2557.1,0.80604888]
[1724933586113,4.56507099,2557.2,2557.1,1.39714888]
[1724933588805,4.56507099,2557.2,2557.1,1.39690985]
[1724933589307,4.56507099,2557.2,2557.1,1.00593985]
[1724933589513,0.391,2556.9,2556.7,1.02381399]
[1724933589814,0.391,2556.9,2556.8,0.39101]
[1724933589815,0.39101,2556.9,2556.8,0.39101]
[1724933590000,1.00267,2557.1,2557.0,0.39098]
[1724933590411,5.24742587,2557.1,2557.0,0.39098]
[1724933590613,5.24742587,2557.1,2557.0,0.97968]
[1724933591413,9.15782587,2557.1,2557.0,0.97968]
[1724933591712,5.24742587,2557.1,2557.0,0.5887]
[1724933591913,0.39098,2557.0,2556.9,0.99519]
[1724933592314,4.49228293,2557.0,2556.9,0.99519]
[1724933593507,4.49228293,2557.0,2556.9,0.6042]
[1724933593508,5.46974293,2557.0,2556.9,0.6042]
[1724933594015,4.49228293,2557.0,2556.9,0.9952]
[1724933595615,5.46974293,2557.0,2556.9,0.6042]
[1724933595819,0.39104,2556.6,2556.5,4.07805]
[1724933596017,0.39106,2556.5,2556.3,0.598]
[1724933596319,0.39109,2556.3,2556.2,1.22186613]
[1724933596713,4.49239293,2556.3,2556.2,1.22186613]
[1724933597320,4.49239293,2556.3,2556.2,0.00586613]
[1724933598423,5.47012293,2556.3,2556.2,0.00586613]
[1724933598615,4.49239293,2556.3,2556.2,0.00586613]
[1724933599218,4.49239293,2556.3,2556.2,1.41586613]
[1724933599821,4.49239293,2556.3,2556.2,0.00586613]
[1724933600416,5.47012293,2556.3,2556.2,0.00586613]
[1724933602319,4.49239293,2556.3,2556.2,1.41586613]
[1724933603122,4.49239293,2556.3,2556.2,2.03196613]
[1724933603316,4.49239293,2556.3,2556.2,0.62196613]
[1724933606518,4.49239293,2556.3,2556.2,1.01306613]
[1724933606721,4.49239293,2556.3,2556.2,0.62196613]
[1724933609832,4.49239293,2556.3,2556.2,1.01306613]
[1724933610933,4.10130293,2556.3,2556.2,1.01306613]
[1724933611125,0.5974,2556.5,2556.3,0.39108]
[1724933611332,0.98846,2556.5,2556.4,0.6061]
[1724933611824,5.07199759,2556.5,2556.4,0.6061]
[1724933612131,5.07199759,2556.5,2556.4,0.99717]
[1724933613326,5.07199759,2556.5,2556.4,2.40717]
[1724933613327,4.08353759,2556.5,2556.4,2.40717]
[1724933613540,4.08353759,2556.5,2556.4,5.61497]
[1724933614128,3.2078,2557.1,2557.0,0.39098]
[1724933614323,0.97733,2557.4,2556.5,0.97765]
[1724933614324,0.39095,2557.2,2557.1,0.39096]
[1724933614832,4.70972399,2557.2,2557.1,0.39096]
[1724933615830,4.70972399,2557.2,2557.0,1.59657]
[1724933615831,0.39097,2557.1,2557.0,1.59657]
[1724933616027,0.95477,2557.1,2557.0,1.59657]
[1724933616234,5.30023813,2557.1,2557.0,1.59657]
[1724933617320,4.34546813,2557.1,2557.0,1.59657]
[1724933618637,4.34546813,2557.1,2557.0,3.00657]
[1724933620934,4.73643813,2557.1,2557.0,1.59657]
[1724933621635,4.34546813,2557.1,2557.0,1.59657]
[1724933621936,0.3909,2557.6,2557.5,0.3909]
[1724933622231,2.39306613,2557.7,2557.1,0.41519621]
[1724933622431,0.39097,2557.1,2557.0,1.59658]
[1724933622633,6.92448743,2557.5,2557.1,0.39096]
[1724933622634,0.39096,2557.2,2557.1,0.39096]
[1724933622830,0.39097,2557.1,2557.0,1.59657]
[1724933623630,3.79453942,2557.2,2557.1,0.39097]
[1724933623931,0.39095,2557.2,2557.1,0.39097]
[1724933624336,4.66396198,2557.2,2557.1,0.39097]
[1724933625130,0.39095,2557.2,2557.1,4.30137]
[1724933625528,1.55827,2557.5,2557.1,4.30137]
[1724933625826,0.39095,2557.3,2557.2,0.39094]
[1724933626232,4.68978289,2557.4,2557.3,0.39093]
[1724933627433,0.39094,2557.3,2557.2,0.39094]
[1724933629647,0.39096,2557.2,2557.1,0.39095]
[1724933630335,4.90569723,2557.2,2557.1,0.39095]
[1724933641757,0.39092,2557.4,2557.3,0.39092]
[1724933642055,0.39092,2557.4,2557.3,1.60022]
[1724933642353,4.60774068,2557.4,2557.3,0.39092]
[1724933642552,5.19034068,2557.4,2557.3,0.39092]
[1724933643155,6.16765068,2557.4,2557.3,0.39092]
[1724933643357,4.60774068,2557.4,2557.3,0.39092]
[1724933645246,5.58505068,2557.4,2557.3,0.39092]
[1724933646255,4.60774068,2557.4,2557.3,0.39092]
[1724933646852,4.60774068,2557.4,2557.1,41.77742]
[1724933646853,8.12722068,2557.4,2557.1,0.39096]
[1724933647056,0.39098,2557.0,2556.9,4.58198]
[1724933647448,6.13385275,2557.0,2556.9,4.191]
[1724933649556,0.391,2556.9,2556.8,3.59881]
[1724933649957,4.81983067,2556.9,2556.8,3.59881]
[1724933650157,5.44923067,2556.9,2556.8,3.2078]
[1724933650955,5.44923067,2556.9,2556.8,3.59881]
[1724933651255,5.44923067,2556.9,2556.8,3.2078]
[1724933652358,6.42673067,2556.9,2556.8,3.2078]
[1724933654364,6.42673067,2556.9,2556.8,3.62314574]
[1724933654656,6.42673067,2556.9,2556.8,3.6231454]
[1724933655264,5.44923067,2556.9,2556.8,5.4241554]
[1724933655563,4.81983067,2556.9,2556.8,5.4241554]
[1724933655859,5.79733067,2556.9,2556.8,5.0331454]
[1724933656363,5.79733067,2556.9,2556.8,3.6231454]
[1724933657062,5.79733067,2556.9,2556.8,3.2078]
[1724933657252,13.89383067,2556.9,2556.8,0.4153119]
[1724933657452,0.39106,2556.5,2556.4,1.9861]
[1724933657659,1.36871,2556.5,2556.4,0.41542622]
[1724933657855,9.75381642,2556.5,2556.4,0.41542622]
[1724933658060,9.75381642,2556.5,2556.3,0.39108]
[1724933658061,0.39107,2556.4,2556.3,0.39108]
[1724933658266,0.39107,2556.4,2556.3,2.17548751]
[1724933658454,4.84144591,2556.4,2556.3,2.17548751]
[1724933658667,5.81913591,2556.4,2556.3,1.78440751]
[1724933659267,4.84144591,2556.4,2556.3,0.80661353]
[1724933659766,5.81913591,2556.4,2556.3,0.41552353]
[1724933660168,6.41733591,2556.4,2556.3,0.41552353]
[1724933660360,0.39109,2556.3,2556.2,4.62366613]
[1724933660661,6.29844248,2556.3,2556.2,5.03918994]
[1724933660863,6.29844248,2556.3,2556.2,3.62918994]
[1724933661169,6.29844248,2556.3,2556.2,3.21366613]
[1724933661555,10.21044248,2556.3,2556.2,3.21366613]
[1724933662467,10.21044248,2556.3,2556.2,0.00586613]
[1724933664667,12.59817248,2556.3,2556.2,0.00586613]
[1724933664858,1.36908,2555.8,2555.7,4.7943]
[1724933665164,5.51525584,2555.8,2555.7,0.6033]
[1724933665365,0.39119,2555.6,2555.5,6.0767]
[1724933665572,0.39119,2555.6,2555.5,5.29456992]
[1724933665573,1.36918,2555.6,2555.5,5.29456992]
[1724933665867,5.63903078,2555.6,2555.5,4.8788]
[1724933666363,5.63903078,2555.6,2555.5,4.2693]
[1724933666959,4.66104078,2555.6,2555.5,6.07051]
[1724933667157,0.00586613,2555.8,2555.7,0.39118]
[1724933667373,0.00586613,2555.8,2555.7,1.80118]
[1724933667567,4.53759823,2555.8,2555.7,1.80118]
[1724933668774,4.92875823,2555.8,2555.7,1.80118]
[1724933668969,4.53759823,2555.8,2555.7,1.80118]
[1724933670076,4.53759823,2555.8,2555.7,0.39118]
[1724933670577,4.53759823,2555.8,2555.7,0.97448]
[1724933671173,4.53759823,2555.8,2555.7,6.8432]
[1724933671372,0.00586613,2555.8,2555.7,12.8432]
[1724933671970,0.00586613,2555.8,2555.7,56.33224]
[1724933672273,0.00586613,2555.8,2555.7,57.3102]
[1724933672472,0.00586613,2555.8,2555.7,54.6902]
[1724933672667,0.00586613,2555.8,2555.7,60.6902]
[1724933672868,1.1449,2556.5,2556.3,0.39107]
[1724933673071,0.39105,2556.6,2556.0,7.56563]
[1724933673264,0.39105,2556.6,2556.5,0.39105]
[1724933673678,0.39104,2556.7,2556.6,0.39103]
[1724933673972,4.71746773,2556.7,2556.6,0.39103]
[1724933674870,0.39105,2556.6,2556.5,0.39105]
[1724933675277,4.64703711,2556.6,2556.5,0.39105]
[1724933675870,4.25598711,2556.6,2556.5,0.39105]
[1724933676071,4.64702711,2556.6,2556.5,0.39105]
[1724933676275,0.39104,2556.6,2556.5,0.39105]
[1724933676575,4.8919388,2556.6,2556.5,0.39105]
[1724933676773,4.8919388,2556.6,2556.5,3.59885]
[1724933677275,4.5008988,2556.6,2556.5,3.59885]
[1724933677575,0.39104,2556.6,2556.5,3.59885]
[1724933677881,0.39104,2556.7,2556.6,0.39104]
[1724933678080,0.39104,2556.7,2556.6,0.95484]
[1724933678276,4.1802067,2556.7,2556.6,1.54464]
[1724933678579,4.5712367,2556.7,2556.6,1.54464]
[1724933679266,4.1802067,2556.7,2556.6,1.54464]
[1724933680066,0.39103,2556.7,2556.6,1.54464]
[1724933680273,0.39103,2556.7,2556.6,0.5898]
[1724933680467,5.57270062,2556.7,2556.6,0.5898]
[1724933681381,4.59513062,2556.7,2556.6,0.98084]
[1724933681782,4.20410062,2556.7,2556.6,0.98084]
[1724933681974,4.59513062,2556.7,2556.6,0.98084]
[1724933682283,0.39103,2556.7,2556.6,0.98084]
[1724933682484,4.63397534,2556.7,2556.6,0.98084]
[1724933686381,4.24294534,2556.7,2556.6,0.98084]
[1724933686582,0.00586613,2556.9,2556.8,0.39101]
[1724933686778,0.00586613,2556.9,2556.8,5.55389]
[1724933686975,0.00586613,2556.9,2556.8,16.06129]
[1724933687383,0.00586613,2556.9,2556.8,16.47638992]
[1724933687592,0.00586613,2556.9,2556.8,57.27638992]
[1724933688281,0.00586613,2556.9,2556.8,56.86129]
[1724933688604,0.00586613,2556.9,2556.8,57.27637564]
[1724933689188,0.00586613,2556.9,2556.8,48.90621]
[1724933689390,0.00586613,2556.9,2556.8,0.39101]
[1724933689391,0.39686613,2556.9,2556.8,0.39101]
[1724933689592,4.92304272,2556.9,2556.8,0.39101]
[1724933690189,0.39101,2556.8,2556.7,0.99472]
[1724933690383,4.92305272,2556.9,2556.8,0.39101]
[1724933690783,4.92305272,2556.9,2556.8,0.97491]
[1724933690982,4.53204272,2556.9,2556.8,0.97491]
[1724933691177,0.00586613,2556.9,2556.8,4.88611]
[1724933691892,0.00586613,2556.9,2556.8,5.86365]
[1724933692791,0.00586613,2556.9,2556.8,4.88611]
[1724933692982,0.00586613,2556.9,2556.8,5.86365]
[1724933694192,0.00586613,2556.9,2556.8,6.27878049]
[1724933695181,0.00586613,2556.9,2556.8,5.86365]
[1724933695386,0.00586613,2556.9,2556.8,6.27875418]
[1724933696391,0.00586613,2556.9,2556.8,6.27877635]
[1724933697996,0.00586613,2556.9,2556.8,0.80613635]
[1724933698191,0.39686613,2556.9,2556.8,0.39101]
[1724933699000,1.55806613,2556.9,2556.8,0.39101]
[1724933699988,0.00586613,2556.9,2556.8,0.39101]
[1724933700190,0.00586613,2556.9,2556.8,1.78355821]
[1724933700390,0.00586613,2556.9,2556.8,2.76109821]
[1724933700795,0.00586613,2556.9,2556.8,6.67229821]
[1724933701097,0.00586613,2556.9,2556.8,6.67228244]
[1724933701495,0.00586613,2556.9,2556.8,5.69474244]
[1724933701697,0.39686613,2556.9,2556.8,0.39101]
[1724933701898,0.00586613,2556.9,2556.8,0.39101]
[1724933703303,0.00586613,2556.9,2556.8,5.27975]
[1724933705497,0.00586613,2556.9,2556.8,6.25729]
[1724933706098,0.00586613,2556.9,2556.8,6.67254619]
[1724933706507,0.00586613,2556.9,2556.8,12.67254619]
[1724933708708,0.00586613,2556.9,2556.8,6.67254619]
[1724933708899,0.00586613,2556.9,2556.8,5.69500619]